fUST/lending_fUST_20250419
["ID","MTS","AMOUNT","RATE_DAILY","PERIOD"]
[358373092,1745009453808,-500.0,0.00022191,2]
[358373093,1745009453818,-500.0,0.00022191,2]
[358373094,1745009453827,-544.22,0.00022191,2]
[358373095,1745009453836,-500.0,0.00022191,2]
[358373096,1745009453846,-1787.31,0.00022191,2]
[358373097,1745009453856,-500.0,0.00022191,2]
[358373098,1745009453866,-500.0,0.00022191,2]
[358373099,1745009453876,-1375.34,0.00022191,2]
[358373100,1745009453889,-500.0,0.00022191,2]
[358373101,1745009453899,-502.88301053,0.00022191,2]
[358373102,1745009453908,-500.0,0.00022191,2]
[358373103,1745009453918,-500.0,0.00022191,2]
[358373104,1745009453927,-500.0,0.00022191,2]
[358373105,1745009453937,-500.0,0.00022191,2]
[358373106,1745009453946,-500.0,0.00022191,2]
[358373107,1745009453958,-500.0,0.00022191,2]
[358373108,1745009453968,-500.0,0.00022191,2]
[358373109,1745009453979,-500.0,0.00022191,2]
[358373110,1745009453989,-500.0,0.00022191,2]
[358373111,1745009453998,-8305.5,0.00022191,2]
[358373112,1745009454008,-500.0,0.00022191,2]
[358373113,1745009454017,-500.0,0.00022191,2]
[358373114,1745009454026,-810.39,0.00022191,2]
[358373115,1745009454035,-506.47408163,0.00022191,2]
[358373116,1745009454045,-709.45,0.00022191,2]
[358373117,1745009454054,-500.0,0.00022191,2]
[358373118,1745009454063,-500.0,0.00022191,2]
[358373119,1745009454072,-500.0,0.00022191,2]
[358373120,1745009454082,-500.0,0.00022191,2]
[358373121,1745009454091,-500.0,0.00022191,2]
[358373122,1745009454101,-500.0,0.00022191,2]
[358373123,1745009454110,-500.0,0.00022191,2]
[358373124,1745009454119,-959.77,0.00022191,2]
[358373125,1745009454129,-500.0,0.00022191,2]
[358373126,1745009454139,-500.0,0.00022191,2]
[358373127,1745009454148,-849.1,0.00022191,2]
[358373128,1745009454157,-515.1,0.00022191,2]
[358373129,1745009454167,-500.0,0.00022191,2]
[358373130,1745009454177,-500.0,0.00022191,2]
[358373131,1745009454187,-1538.47,0.00022191,2]
[358373132,1745009454197,-500.0,0.00022191,2]
[358373133,1745009454207,-922.55,0.00022191,2]
[358373134,1745009454216,-500.0,0.00022191,2]
[358373135,1745009454226,-611.96,0.00022191,2]
[358373136,1745009454235,-500.0,0.00022191,2]
[358373137,1745009454245,-500.0,0.00022191,2]
[358373138,1745009454255,-505.20174757,0.00022191,2]
[358373139,1745009454264,-500.0,0.00022191,2]
[358373140,1745009454273,-500.0,0.00022191,2]
[358373141,1745009454283,-737.45,0.00022191,2]
[358373142,1745009454293,-500.0,0.00022191,2]
[358373143,1745009454303,-500.0,0.00022191,2]
[358373144,1745009454312,-500.0,0.00022191,2]
[358373145,1745009454322,-500.0,0.00022191,2]
[358373146,1745009454331,-732.94,0.000222,2]
[358373147,1745009454341,-452.7994063,0.00022258,2]
[358373148,1745009454350,-1268.4334661,0.00022383,4]
[358373149,1745009454360,-600.0,0.000224,4]
[358373150,1745009454369,-500.0,0.00022465,2]
[358373151,1745009454379,-500.0,0.00022465,2]
[358373152,1745009454389,-500.0,0.00022465,2]
[358373153,1745009454398,-665.17,0.00022465,2]
[358373154,1745009454408,-500.0,0.00022465,2]
[358373155,1745009454417,-500.0,0.00022465,2]
[358373156,1745009454427,-593.98,0.00022465,2]
[358373157,1745009454436,-500.0,0.00022465,2]
[358373158,1745009454446,-428.88,0.00022465,2]
[358373159,1745009454455,-500.0,0.00022465,2]
[358373160,1745009454465,-500.0,0.00022465,2]
[358373161,1745009454475,-992.67,0.00022465,2]
[358373162,1745009454485,-164.00690683,0.00022465,2]
[358373163,1745009454494,-500.0,0.00022465,2]
[358373164,1745009454504,-500.0,0.00022465,2]
[358373165,1745009454513,-500.0,0.00022465,2]
[358373166,1745009454523,-500.0,0.00022465,2]
[358373167,1745009454532,-500.0,0.00022465,2]
[358373168,1745009454542,-500.0,0.00022465,2]
[358373169,1745009454552,-500.0,0.00022465,2]
[358373170,1745009454561,-500.32,0.00022465,2]
[358373171,1745009454571,-500.0,0.00022465,2]
[358373172,1745009454580,-500.0,0.00022465,2]
[358373173,1745009454590,-500.0,0.00022465,2]
[358373174,1745009454599,-500.0,0.00022465,2]
[358373175,1745009454609,-500.0,0.00022465,2]
[358373176,1745009454618,-500.0,0.00022465,2]
[358373177,1745009454628,-500.0,0.00022465,2]
[358373178,1745009454638,-500.0,0.00022465,2]
[358373179,1745009454647,-589.9,0.00022465,2]
[358373180,1745009454657,-500.0,0.00022465,2]
[358373181,1745009454666,-506.29,0.00022465,2]
[358373182,1745009454675,-535.28,0.00022465,2]
[358373183,1745009454685,-500.0,0.00022465,2]
[358373184,1745009454694,-500.0,0.00022465,2]
[358373185,1745009454704,-1194.78,0.00022465,2]
[358373186,1745009454714,-308.53,0.00022465,2]
[358373187,1745009454724,-500.0,0.00022465,2]
[358373188,1745009454733,-500.0,0.00022465,2]
[358373189,1745009454743,-500.0,0.00022465,2]
[358373190,1745009454753,-505.55032306,0.00022465,2]
[358373191,1745009454763,-502.5523571,0.00022465,2]
[358373192,1745009454772,-500.0,0.00022465,2]
[358373193,1745009454781,-500.0,0.00022465,2]
[358373194,1745009454791,-502.79024682,0.00022465,2]
[358373195,1745009454800,-500.0,0.00022465,2]
[358373196,1745009454810,-504.00831323,0.00022465,2]
[358373197,1745009454819,-500.0,0.00022465,2]
[358373198,1745009454829,-760.06,0.00022465,2]
[358373199,1745009454838,-506.33699423,0.00022465,2]
[358373200,1745009454847,-510.4,0.00022465,2]
[358373201,1745009454857,-500.0,0.00022465,2]
[358373202,1745009454867,-500.0,0.00022465,2]
[358373203,1745009454877,-500.0,0.00022465,2]
[358373204,1745009454891,-784.04,0.00022465,2]
[358373205,1745009454900,-500.0,0.00022465,2]
[358373206,1745009454910,-940.13,0.00022465,2]
[358373207,1745009454919,-516.06,0.00022465,2]
[358373208,1745009454928,-500.0,0.00022465,2]
[358373209,1745009454938,-500.0,0.00022465,2]
[358373210,1745009454947,-546.69,0.00022465,2]
[358373211,1745009454957,-286.5538348,0.00022465,2]
[358373212,1745009454966,-500.0,0.00022465,2]
[358373213,1745009454976,-500.0,0.00022465,2]
[358373214,1745009454986,-500.0,0.00022465,2]
[358373215,1745009454995,-500.0,0.00022465,2]
[358373216,1745009455004,-883.11,0.00022465,2]
[358373217,1745009455013,-571.08,0.00022465,2]
[358373218,1745009455023,-823.6,0.00022465,2]
[358373219,1745009455032,-500.0,0.00022465,2]
[358373220,1745009455041,-1201.12,0.00022465,2]
[358373221,1745009455051,-500.0,0.00022465,2]
[358373222,1745009455060,-500.0,0.00022465,2]
[358373223,1745009455070,-500.0,0.00022465,2]
[358373224,1745009455079,-500.0,0.00022465,2]
[358373225,1745009455089,-500.0,0.00022465,2]
[358373226,1745009455098,-500.0,0.00022465,2]
[358373227,1745009455107,-1706.69,0.00022465,2]
[358373228,1745009455117,-1084.49,0.00022465,2]
[358373229,1745009455127,-878.67,0.00022465,2]
[358373230,1745009455137,-500.0,0.00022465,2]
[358373231,1745009455146,-344.44888361,0.00022465,2]
[358373232,1745009455156,-888.77,0.00022465,2]
[358373233,1745009455166,-234.60880617,0.00022465,2]
[358373234,1745009455176,-500.0,0.00022465,2]
[358373235,1745009455186,-520.89,0.00022465,2]
[358373236,1745009455196,-627.32,0.00022465,2]
[358373237,1745009455206,-500.0,0.00022465,2]
[358373238,1745009455215,-500.0,0.00022465,2]
[358373239,1745009455225,-500.0,0.00022465,2]
[358373240,1745009455236,-500.0,0.00022465,2]
[358373241,1745009455246,-693.0,0.00022465,2]
[358373242,1745009455370,-500.0,0.00022465,2]
[358373243,1745009455380,-500.0,0.00022465,2]
[358373244,1745009455390,-500.0,0.00022465,2]
[358373245,1745009455400,-500.0,0.00022465,2]
[358373246,1745009455409,-1465.89,0.00022465,2]
[358373247,1745009455419,-500.0,0.00022465,2]
[358373248,1745009455429,-500.0,0.00022465,2]
[358373249,1745009455438,-500.0,0.00022465,2]
[358373250,1745009455448,-500.0,0.00022465,2]
[358373251,1745009455458,-500.0,0.00022465,2]
[358373252,1745009455468,-500.0,0.00022465,2]
[358373253,1745009455477,-534.87,0.00022465,2]
[358373254,1745009455487,-3164.97,0.00022465,2]
[358373255,1745009455496,-500.0,0.00022465,2]
[358373256,1745009455506,-500.0,0.00022465,2]
[358373257,1745009455515,-500.0,0.00022465,2]
[358373258,1745009455525,-790.87,0.00022465,2]
[358373259,1745009455535,-500.0,0.00022465,2]
[358373260,1745009455544,-1021.07,0.00022465,2]
[358373261,1745009455554,-500.0,0.00022465,2]
[358373262,1745009455563,-493.8257055,0.00022465,2]
[358373263,1745009455573,-607.69,0.00022465,2]
[358373264,1745009455582,-500.0,0.00022465,2]
[358373265,1745009455592,-500.0,0.00022465,2]
[358373266,1745009455602,-500.0,0.00022465,2]
[358373267,1745009455611,-500.0,0.00022465,2]
[358373268,1745009455621,-740.29,0.00022465,2]
[358373269,1745009455630,-522.17493738,0.00022465,2]
[358373270,1745009455640,-500.0,0.00022465,2]
[358373271,1745009455649,-500.0,0.00022465,2]
[358373272,1745009455659,-500.0,0.00022465,2]
[358373273,1745009455669,-649.56,0.00022465,2]
[358373274,1745009455678,-592.11,0.00022465,2]
[358373275,1745009455688,-500.0,0.00022465,2]
[358373276,1745009455697,-604.61,0.00022465,2]
[358373277,1745009455707,-505.51,0.00022465,2]
[358373278,1745009455716,-500.0,0.00022465,2]
[358373279,1745009455727,-572.51,0.00022465,2]
[358373280,1745009455739,-500.0,0.00022465,2]
[358373281,1745009455749,-600.21,0.00022465,2]
[358373282,1745009455758,-500.0,0.00022465,2]
[358373283,1745009455768,-503.66437317,0.00022465,2]
[358373284,1745009455777,-658.59,0.00022465,2]
[358373285,1745009455787,-500.0,0.00022465,2]
[358373286,1745009455796,-797.86,0.00022465,2]
[358373287,1745009455806,-500.0,0.00022465,2]
[358373288,1745009455815,-1407.56,0.00022465,2]
[358373289,1745009455825,-500.0,0.00022465,2]
[358373290,1745009455834,-641.26,0.00022465,2]
[358373291,1745009455844,-500.0,0.00022465,2]
[358373292,1745009455853,-695.13,0.00022465,2]
[358373293,1745009455862,-500.0,0.00022465,2]
[358373294,1745009455871,-1771.28,0.00022465,2]
[358373295,1745009455882,-500.0,0.00022465,2]
[358373296,1745009455892,-501.90883302,0.00022465,2]
[358373297,1745009455902,-500.0,0.00022465,2]
[358373298,1745009455912,-928.93,0.00022465,2]
[358373299,1745009455923,-763.31,0.00022465,2]
[358373300,1745009455933,-732.13,0.00022465,2]
[358373301,1745009455942,-590.02,0.00022465,2]
[358373302,1745009455952,-1238.23,0.00022465,2]
[358373303,1745009455963,-1103.61,0.00022465,2]
[358373304,1745009455972,-500.0,0.00022465,2]
[358373305,1745009455982,-1459.07,0.00022465,2]
[358373306,1745009455992,-703.26,0.00022465,2]
[358373307,1745009456001,-883.88,0.00022465,2]
[358373308,1745009456011,-500.0,0.00022465,2]
[358373309,1745009456020,-4355.55,0.00022465,2]
[358373310,1745009456030,-801.44,0.00022465,2]
[358373311,1745009456040,-500.0,0.00022465,2]
[358373312,1745009456049,-500.0,0.00022465,2]
[358373313,1745009456059,-616.51,0.00022465,2]
[358373314,1745009456069,-1000.0,0.00022465,2]
[358373315,1745009456079,-500.0,0.00022465,2]
[358373316,1745009456088,-500.0,0.00022465,2]
[358373317,1745009456098,-503.67460334,0.00022465,2]
[358373318,1745009456108,-500.0,0.00022465,2]
[358373319,1745009456117,-833.57,0.00022465,2]
[358373320,1745009456127,-500.0,0.00022465,2]
[358373321,1745009456137,-291.16103928,0.00022465,2]
[358373322,1745009456146,-502.13544288,0.00022465,2]
[358373323,1745009456156,-567.64,0.00022465,2]
[358373324,1745009456165,-843.0,0.00022465,2]
[358373325,1745009456175,-593.64,0.00022465,2]
[358373326,1745009456185,-500.0,0.00022465,2]
[358373327,1745009456195,-500.0,0.00022465,2]
[358373328,1745009456205,-500.0,0.00022465,2]
[358373329,1745009456215,-1247.67,0.00022465,2]
[358373330,1745009456224,-910.6,0.00022465,2]
[358373331,1745009456234,-500.0,0.00022465,2]
[358373332,1745009456244,-500.0,0.00022465,2]
[358373333,1745009456253,-500.0,0.00022465,2]
[358373334,1745009456262,-534.71,0.00022465,2]
[358373335,1745009456272,-500.0,0.00022465,2]
[358373336,1745009456283,-894.03,0.00022465,2]
[358373337,1745009456293,-530.68,0.00022465,2]
[358373338,1745009456304,-804.16,0.00022465,2]
[358373339,1745009456314,-682.89,0.00022465,2]
[358373340,1745009456323,-500.0,0.00022465,2]
[358373341,1745009456333,-500.0,0.00022465,2]
[358373342,1745009456343,-500.0,0.00022465,2]
[358373343,1745009456353,-500.0,0.00022465,2]
[358373344,1745009456363,-1348.03,0.00022465,2]
[358373345,1745009456372,-500.0,0.00022465,2]
[358373346,1745009456382,-665.46,0.00022465,2]
[358373347,1745009456391,-1057.16,0.00022465,2]
[358373348,1745009456401,-500.0,0.00022465,2]
[358373349,1745009456411,-500.0,0.00022465,2]
[358373350,1745009456420,-614.5441389,0.00022465,2]
[358373351,1745009456430,-617.94,0.00022465,2]
[358373352,1745009456439,-1358.09,0.00022465,2]
[358373353,1745009456449,-696.13,0.00022465,2]
[358373354,1745009456458,-500.0,0.00022465,2]
[358373355,1745009456468,-500.0,0.00022465,2]
[358373356,1745009456477,-500.0,0.00022465,2]
[358373357,1745009456487,-500.0,0.00022465,2]
[358373358,1745009456496,-500.0,0.00022465,2]
[358373359,1745009456506,-845.13,0.00022465,2]
[358373360,1745009456515,-386.96393768,0.00022465,2]
[358373361,1745009456525,-500.0,0.00022465,2]
[358373362,1745009456535,-398.41901406,0.00022465,2]
[358373363,1745009456545,-790.83,0.00022465,2]
[358373364,1745009456556,-503.51664856,0.00022465,2]
[358373365,1745009456566,-525.03,0.00022465,2]
[358373366,1745009456577,-500.0,0.00022465,2]
[358373367,1745009456586,-1310.67,0.00022465,2]
[358373368,1745009456596,-500.0,0.00022465,2]
[358373369,1745009456607,-500.0,0.00022465,2]
[358373370,1745009456617,-186.11420023,0.00022465,2]
[358373371,1745009456627,-500.0,0.00022465,2]
[358373372,1745009456636,-500.0,0.00022465,2]
[358373373,1745009456646,-743.12,0.00022465,2]
[358373374,1745009456655,-500.0,0.00022465,2]
[358373375,1745009456665,-561.56,0.00022465,2]
[358373376,1745009456678,-1295.06,0.00022465,2]
[358373377,1745009456690,-1024.06,0.00022465,2]
[358373378,1745009456700,-637.24798539,0.00022465,2]
[358373379,1745009456710,-1750.83,0.00022465,2]
[358373380,1745009456719,-1694.87,0.00022465,2]
[358373381,1745009456729,-501.40981562,0.00022465,2]
[358373382,1745009456738,-500.0,0.00022465,2]
[358373383,1745009456748,-500.0,0.00022465,2]
[358373384,1745009456758,-1280.18,0.00022465,2]
[358373385,1745009456767,-500.0,0.00022465,2]
[358373386,1745009456777,-217.86911168,0.00022465,2]
[358373387,1745009456787,-562.14,0.00022465,2]
[358373388,1745009456796,-500.0,0.00022465,2]
[358373389,1745009456805,-1115.86,0.00022465,2]
[358373390,1745009456814,-500.0,0.00022465,2]
[358373391,1745009456824,-1405.6,0.00022465,2]
[358373392,1745009456833,-500.0,0.00022465,2]
[358373393,1745009456842,-564.81,0.00022465,2]
[358373394,1745009456852,-738.22,0.00022465,2]
[358373395,1745009456861,-500.0,0.00022465,2]
[358373396,1745009456871,-732.94,0.00022465,2]
[358373397,1745009456883,-500.0,0.00022465,2]
[358373398,1745009456893,-601.92792404,0.00022465,2]
[358373399,1745009456902,-1302.91,0.00022465,2]
[358373400,1745009456911,-500.0,0.00022465,2]
[358373401,1745009456921,-500.0,0.00022465,2]
[358373402,1745009456930,-544.18,0.00022465,2]
[358373403,1745009456940,-804.47,0.00022465,2]
[358373404,1745009456949,-500.0,0.00022465,2]
[358373405,1745009456959,-500.0,0.00022465,2]
[358373406,1745009456969,-1005.27,0.00022465,2]
[358373407,1745009456978,-500.0,0.00022465,2]
[358373408,1745009456988,-500.0,0.00022465,2]
[358373409,1745009456997,-500.0,0.00022465,2]
[358373410,1745009457006,-641.99,0.00022465,2]
[358373411,1745009457016,-500.0,0.00022465,2]
[358373412,1745009457025,-972.87,0.00022465,2]
[358373413,1745009457035,-500.0,0.00022465,2]
[358373414,1745009457044,-500.0,0.00022465,2]
[358373415,1745009457053,-12567.49,0.00022465,2]
[358373416,1745009457062,-500.0,0.00022465,2]
[358373417,1745009457072,-500.0,0.00022465,2]
[358373418,1745009457082,-500.0,0.00022465,2]
[358373419,1745009457091,-500.0,0.00022465,2]
[358373420,1745009457101,-652.4,0.00022465,2]
[358373421,1745009457111,-2516.32,0.00022465,2]
[358373422,1745009457121,-500.0,0.00022465,2]
[358373423,1745009457131,-3317.01,0.00022465,2]
[358373424,1745009457247,-500.0,0.00022465,2]
[358373425,1745009457258,-991.85,0.00022465,2]
[358373426,1745009457268,-3986.83,0.00022465,2]
[358373427,1745009457277,-1179.52,0.00022465,2]
[358373428,1745009457287,-500.0,0.00022465,2]
[358373429,1745009457296,-1998.18,0.00022465,2]
[358373430,1745009457306,-502.15811695,0.00022465,2]
[358373431,1745009457315,-1345.97,0.00022465,2]
[358373432,1745009457326,-697.27,0.00022465,2]
[358373433,1745009457336,-500.0,0.00022465,2]
[358373434,1745009457346,-554.73,0.00022465,2]
[358373435,1745009457355,-500.0,0.00022465,2]
[358373436,1745009457365,-503.40514051,0.00022465,2]
[358373437,1745009457375,-501.07996764,0.00022465,2]
[358373438,1745009457386,-500.0,0.00022465,2]
[358373439,1745009457395,-504.6748428,0.00022465,2]
[358373440,1745009457407,-500.0,0.00022465,2]
[358373441,1745009457418,-500.0,0.00022465,2]
[358373442,1745009457427,-1061.42,0.00022465,2]
[358373443,1745009457437,-500.0,0.00022465,2]
[358373444,1745009457446,-500.0,0.00022465,2]
[358373445,1745009457456,-852.56,0.00022465,2]
[358373446,1745009457465,-572.72,0.00022465,2]
[358373447,1745009457474,-500.0,0.00022465,2]
[358373448,1745009457484,-500.0,0.00022465,2]
[358373449,1745009457494,-500.0,0.00022465,2]
[358373450,1745009457504,-745.83572778,0.00022465,2]
[358373451,1745009457735,-1773.68427222,0.00022465,2]
[358373452,1745009457745,-1332.28,0.00022465,2]
[358373453,1745009457755,-647.68,0.00022465,2]
[358373454,1745009457764,-500.0,0.00022465,2]
[358373455,1745009457774,-635.97,0.00022465,2]
[358373456,1745009457784,-551.69,0.00022465,2]
[358373457,1745009457793,-1358.94,0.00022465,2]
[358373458,1745009457803,-500.0,0.00022465,2]
[358373459,1745009457812,-500.0,0.00022465,2]
[358373460,1745009457822,-500.0,0.00022465,2]
[358373461,1745009457832,-699.03,0.00022465,2]
[358373462,1745009457841,-500.0,0.00022465,2]
[358373463,1745009457851,-1128.65,0.00022465,2]
[358373464,1745009457861,-500.0,0.00022465,2]
[358373465,1745009457871,-503.63130158,0.00022465,2]
[358373466,1745009457883,-944.0,0.00022465,2]
[358373467,1745009457893,-500.0,0.00022465,2]
[358373468,1745009457903,-501.49058202,0.00022465,2]
[358373469,1745009457912,-500.0,0.00022465,2]
[358373470,1745009457922,-500.0,0.00022465,2]
[358373471,1745009457932,-501.45892616,0.00022465,2]
[358373472,1745009457942,-500.0,0.00022465,2]
[358373473,1745009457951,-3156.97,0.00022465,2]
[358373474,1745009457964,-7602.4,0.00022465,2]
[358373475,1745009457974,-500.0,0.00022465,2]
[358373476,1745009457985,-500.0,0.00022465,2]
[358373477,1745009457995,-791.57,0.00022465,2]
[358373478,1745009458004,-750.55,0.00022465,2]
[358373479,1745009458015,-500.0,0.00022465,2]
[358373480,1745009458024,-500.0,0.00022465,2]
[358373481,1745009458034,-500.0,0.00022465,2]
[358373482,1745009458044,-500.0,0.00022465,2]
[358373483,1745009458055,-500.0,0.00022465,2]
[358373484,1745009458064,-500.0,0.00022465,2]
[358373485,1745009458074,-500.0,0.00022465,2]
[358373486,1745009458084,-500.0,0.00022465,2]
[358373487,1745009458094,-1130.17,0.00022465,2]
[358373488,1745009458103,-587.65,0.00022465,2]
[358373489,1745009458113,-8286.27,0.00022465,2]
[358373490,1745009458123,-500.0,0.00022465,2]
[358373491,1745009458133,-500.0,0.00022465,2]
[358373492,1745009458143,-549.79,0.00022465,2]
[358373493,1745009458153,-1703.93,0.00022465,2]
[358373494,1745009458163,-500.0,0.00022465,2]
[358373495,1745009458173,-26835.23,0.00022465,2]
[358373496,1745009458183,-512.57,0.00022465,2]
[358373497,1745009458194,-500.0,0.00022465,2]
[358373498,1745009458203,-488.06170803,0.00022465,2]
[358373499,1745009458214,-544.22,0.00022465,2]
[358373500,1745009458224,-500.0,0.00022465,2]
[358373501,1745009458234,-1787.31,0.00022465,2]
[358373502,1745009458244,-191.33891761,0.00022465,2]
[358373503,1745009458254,-500.0,0.00022465,2]
[358373504,1745009458265,-1375.34,0.00022465,2]
[358373505,1745009458275,-498.80184552,0.00022465,2]
[358373506,1745009458285,-500.0,0.00022465,2]
[358373507,1745009458295,-500.0,0.00022465,2]
[358373508,1745009458305,-500.0,0.00022465,2]
[358373509,1745009458315,-500.0,0.00022465,2]
[358373510,1745009458325,-500.0,0.00022465,2]
[358373511,1745009458334,-500.0,0.00022465,2]
[358373512,1745009458343,-500.0,0.00022465,2]
[358373513,1745009458353,-8305.5,0.00022465,2]
[358373514,1745009458363,-500.0,0.00022465,2]
[358373515,1745009458373,-810.39,0.00022465,2]
[358373516,1745009458383,-709.45,0.00022465,2]
[358373517,1745009458392,-301.97184876,0.00022465,2]
[358373518,1745009458401,-500.0,0.00022465,2]
[358373519,1745009458411,-500.0,0.00022465,2]
[358373520,1745009458421,-500.0,0.00022465,2]
[358373521,1745009458432,-500.0,0.00022465,2]
[358373522,1745009458441,-500.0,0.00022465,2]
[358373523,1745009458451,-959.77,0.00022465,2]
[358373524,1745009458461,-500.0,0.00022465,2]
[358373525,1745009458470,-500.0,0.00022465,2]
[358373526,1745009458479,-849.1,0.00022465,2]
[358373527,1745009458489,-515.1,0.00022465,2]
[358373528,1745009458498,-500.0,0.00022465,2]
[358373529,1745009458508,-1538.47,0.00022465,2]
[358373530,1745009458518,-500.0,0.00022465,2]
[358373531,1745009458527,-922.55,0.00022465,2]
[358373532,1745009458536,-611.96,0.00022465,2]
[358373533,1745009458546,-500.0,0.00022465,2]
[358373534,1745009458555,-500.0,0.00022465,2]
[358373535,1745009458565,-297.34,0.00022465,2]
[358373536,1745009458575,-737.45,0.00022465,2]
[358373537,1745009458584,-500.0,0.00022465,2]
[358373538,1745009458594,-500.0,0.00022465,2]
[358373539,1745009458603,-500.0,0.00022465,2]
[358373540,1745009458613,-500.0,0.00022465,2]
[358373541,1745009458623,-900.0,0.00022466,2]
[358373542,1745009458632,-432.334643,0.00022501,15]
[358373543,1745009458641,-1196.79212261,0.00022539,2]
[358373544,1745009458651,-250.0,0.000227,2]
[358373545,1745009458782,-250.0,0.000227,2]
[358373546,1745009458792,-500.0,0.00022739,2]
[358373547,1745009458801,-500.0,0.00022739,2]
[358373548,1745009458811,-665.17,0.00022739,2]
[358373549,1745009458821,-500.0,0.00022739,2]
[358373550,1745009458830,-500.0,0.00022739,2]
[358373551,1745009458840,-593.98,0.00022739,2]
[358373552,1745009458849,-264.1496637,0.00022739,2]
[358373553,1745009458859,-500.0,0.00022739,2]
[358373554,1745009458869,-500.0,0.00022739,2]
[358373555,1745009458879,-992.67,0.00022739,2]
[358373556,1745009458891,-500.0,0.00022739,2]
[358373557,1745009458901,-500.0,0.00022739,2]
[358373558,1745009458911,-500.0,0.00022739,2]
[358373559,1745009458920,-500.0,0.00022739,2]
[358373560,1745009458930,-500.0,0.00022739,2]
[358373561,1745009458940,-500.0,0.00022739,2]
[358373562,1745009458949,-500.0,0.00022739,2]
[358373563,1745009458959,-500.32,0.00022739,2]
[358373564,1745009458969,-500.0,0.00022739,2]
[358373565,1745009458979,-500.0,0.00022739,2]
[358373566,1745009458988,-500.0,0.00022739,2]
[358373567,1745009458998,-500.0,0.00022739,2]
[358373568,1745009459008,-500.0,0.00022739,2]
[358373569,1745009459018,-500.0,0.00022739,2]
[358373570,1745009459028,-500.0,0.00022739,2]
[358373571,1745009459038,-500.0,0.00022739,2]
[358373572,1745009459047,-589.9,0.00022739,2]
[358373573,1745009459057,-500.0,0.00022739,2]
[358373574,1745009459066,-506.29,0.00022739,2]
[358373575,1745009459076,-535.28,0.00022739,2]
[358373576,1745009459086,-500.0,0.00022739,2]
[358373577,1745009459095,-500.0,0.00022739,2]
[358373578,1745009459105,-1194.78,0.00022739,2]
[358373579,1745009459115,-496.34256103,0.00022739,2]
[358373580,1745009459125,-500.0,0.00022739,2]
[358373581,1745009459135,-307.7343279,0.00022739,2]
[358373582,1745009459163,-500.0,0.00022191,2]
[358373583,1745009459173,-192.2656721,0.00022739,2]
[358373584,1745009459183,-396.28267704,0.00022739,2]
[358373585,1745009459348,-500.0,0.00021917,2]
[358373586,1745009459358,-909.91,0.00021917,2]
[358373587,1745009459368,-500.0,0.00022191,2]
[358373588,1745009459378,-909.91,0.00022191,2]
[358373589,1745009459388,-500.0,0.00022465,2]
[358373590,1745009459398,-909.91,0.00022465,2]
[358373591,1745009459408,-177.44732296,0.00022739,2]